[Event "Titled Tuesday Blitz August 09 Late 2022"]
[White "Demchenko, Anton"]
[Black "Clarke, Brandon G I"]
[WhiteFideId "4160258"]
[BlackFideId "400319"]
[WhiteElo "2539"]
[BlackElo "2414"]
[Result "0-1"]
[Round "05"]
[TimeControl "180+1"]
[Date "2022.08.09"]
[WhiteClock "0:00:01"]
[BlackClock "0:00:14"]

1. e4 {[%clk 0:03:00]}  e6 {[%clk 0:02:59]} 2. d4 {[%clk 0:03:00]}  d5 {[%clk 0:03:00]} 3. Nd2 {[%clk 0:02:59]}  Nc6 {[%clk 0:03:00]} 4. Ngf3 {[%clk 0:02:59]}  Nf6 {[%clk 0:03:00]} 5. e5 {[%clk 0:02:59]}  Nd7 {[%clk 0:03:00]} 6. Nb3 {[%clk 0:03:00]}  a5 {[%clk 0:02:57]} 7. Bb5 {[%clk 0:02:57]}  Na7 {[%clk 0:02:51]} 8. Bd3 {[%clk 0:02:54]}  a4 {[%clk 0:02:50]} 9. Nbd2 {[%clk 0:02:54]}  c5 {[%clk 0:02:50]} 10. c3 {[%clk 0:02:52]}  Qb6 {[%clk 0:02:48]} 11. Qxa4 {[%clk 0:02:36]}  Be7 {[%clk 0:02:47]} 12. O-O {[%clk 0:02:32]}  O-O {[%clk 0:02:47]} 13. Re1 {[%clk 0:02:26]}  c4 {[%clk 0:02:39]} 14. Bb1 {[%clk 0:02:10]}  Rd8 {[%clk 0:02:36]} 15. Nf1 {[%clk 0:02:07]}  Nf8 {[%clk 0:02:35]} 16. Qd1 {[%clk 0:02:04]}  Qa5 {[%clk 0:02:33]} 17. a3 {[%clk 0:02:01]}  b5 {[%clk 0:02:31]} 18. Bd2 {[%clk 0:02:02]}  Nc6 {[%clk 0:02:30]} 19. Bc2 {[%clk 0:02:02]}  Ng6 {[%clk 0:02:10]} 20. Ng3 {[%clk 0:01:58]}  Bf8 {[%clk 0:02:08]} 21. Nh5 {[%clk 0:01:58]}  Bd7 {[%clk 0:02:06]} 22. g3 {[%clk 0:01:57]}  Be8 {[%clk 0:02:04]} 23. h4 {[%clk 0:01:53]}  Qa7 {[%clk 0:01:55]} 24. Nh2 {[%clk 0:01:47]}  Nce7 {[%clk 0:01:52]} 25. Rb1 {[%clk 0:01:41]}  Qd7 {[%clk 0:01:38]} 26. Ng4 {[%clk 0:01:38]}  Kh8 {[%clk 0:01:37]} 27. Qf3 {[%clk 0:01:37]}  Nf5 {[%clk 0:01:36]} 28. Bxf5 {[%clk 0:01:33]}  exf5 {[%clk 0:01:36]} 29. Ne3 {[%clk 0:01:34]}  Ne7 {[%clk 0:01:33]} 30. Nf4 {[%clk 0:01:32]}  Ra6 {[%clk 0:01:31]} 31. h5 {[%clk 0:01:30]}  g5 {[%clk 0:01:28]} 32. hxg6 {[%clk 0:01:17]}  fxg6 {[%clk 0:01:19]} 33. Nh3 {[%clk 0:01:04]}  h6 {[%clk 0:00:59]} 34. Nf4 {[%clk 0:00:49]}  g5 {[%clk 0:00:57]} 35. Nh5 {[%clk 0:00:49]}  Bg6 {[%clk 0:00:50]} 36. Nf6 {[%clk 0:00:48]}  Qe6 {[%clk 0:00:50]} 37. Qh1 {[%clk 0:00:38]}  Ng8 {[%clk 0:00:41]} 38. Ng2 {[%clk 0:00:32]}  f4 {[%clk 0:00:34]} 39. Nxg8 {[%clk 0:00:23]}  Kxg8 {[%clk 0:00:31]} 40. Rbc1 {[%clk 0:00:10]}  f3 {[%clk 0:00:31]} 41. Ne3 {[%clk 0:00:10]}  Be4 {[%clk 0:00:31]} 42. g4 {[%clk 0:00:08]}  Bg7 {[%clk 0:00:29]} 43. Qh5 {[%clk 0:00:09]}  Rf8 {[%clk 0:00:29]} 44. Kh2 {[%clk 0:00:07]}  Rf4 {[%clk 0:00:29]} 45. Rh1 {[%clk 0:00:07]}  Ra8 {[%clk 0:00:28]} 46. Kg1 {[%clk 0:00:07]}  Raf8 {[%clk 0:00:29]} 47. Qh3 {[%clk 0:00:05]}  Kh7 {[%clk 0:00:27]} 48. Kf1 {[%clk 0:00:04]}  Bd3+ {[%clk 0:00:23]} 49. Ke1 {[%clk 0:00:03]}  Re4 {[%clk 0:00:22]} 50. Qg3 {[%clk 0:00:03]}  Rff4 {[%clk 0:00:22]} 51. Rg1 {[%clk 0:00:01]}  Qg6 {[%clk 0:00:20]} 52. Qh3 {[%clk 0:00:01]}  Qe6 {[%clk 0:00:19]} 53. Kd1 {[%clk 0:00:02]}  Be2+ {[%clk 0:00:18]} 54. Ke1 {[%clk 0:00:02]}  Qa6 {[%clk 0:00:17]} 55. Ra1 {[%clk 0:00:02]}  Qa4 {[%clk 0:00:17]} 56. Bc1 {[%clk 0:00:03]}  Rxe3 {[%clk 0:00:15]} 57. Bxe3 {[%clk 0:00:02]}  Re4 {[%clk 0:00:14]} 58. Kd2 {[%clk 0:00:01]}  Qb3 {[%clk 0:00:13]} 59. Rgb1 {[%clk 0:00:02]}  Bd3 {[%clk 0:00:13]} 60. Qh5 {[%clk 0:00:01]}  Qc2+ {[%clk 0:00:13]} 61. Ke1 {[%clk 0:00:01]}  Qe2# {[%clk 0:00:14]} 0-1


[Site "https://www.chess.com"]

[Event "Titled Tuesday Blitz August 09 Late 2022"]
[White "Goltsev, Dmitry"]
[Black "Babazada, Khazar"]
[WhiteFideId "24176710"]
[BlackFideId "13413554"]
[WhiteElo "2258"]
[BlackElo "2409"]
[Result "1-0"]
[Round "05"]
[TimeControl "180+1"]
[Date "2022.08.09"]
[WhiteClock "0:00:10"]
[BlackClock "0:00:03"]

1. e4 {[%clk 0:03:00]}  Nf6 {[%clk 0:03:00]} 2. e5 {[%clk 0:03:00]}  Nd5 {[%clk 0:03:01]} 3. d4 {[%clk 0:03:01]}  d6 {[%clk 0:03:01]} 4. Nf3 {[%clk 0:03:02]}  Nb6 {[%clk 0:03:02]} 5. c4 {[%clk 0:03:02]}  g6 {[%clk 0:03:01]} 6. exd6 {[%clk 0:03:02]}  cxd6 {[%clk 0:03:02]} 7. Nc3 {[%clk 0:03:02]}  Bg7 {[%clk 0:03:02]} 8. h3 {[%clk 0:03:03]}  O-O {[%clk 0:03:03]} 9. Be2 {[%clk 0:03:03]}  Bf5 {[%clk 0:02:56]} 10. O-O {[%clk 0:03:03]}  Nc6 {[%clk 0:02:51]} 11. a3 {[%clk 0:03:02]}  d5 {[%clk 0:02:47]} 12. c5 {[%clk 0:03:02]}  Nc8 {[%clk 0:02:48]} 13. b4 {[%clk 0:02:59]}  a6 {[%clk 0:02:48]} 14. Bf4 {[%clk 0:02:58]}  e6 {[%clk 0:02:43]} 15. b5 {[%clk 0:02:56]}  axb5 {[%clk 0:02:41]} 16. Nxb5 {[%clk 0:02:57]}  Be4 {[%clk 0:02:13]} 17. Ng5 {[%clk 0:02:50]}  h6 {[%clk 0:02:04]} 18. Nxe4 {[%clk 0:02:48]}  dxe4 {[%clk 0:02:04]} 19. Be3 {[%clk 0:02:40]}  N8e7 {[%clk 0:02:03]} 20. Nd6 {[%clk 0:02:36]}  Nd5 {[%clk 0:01:54]} 21. Nxb7 {[%clk 0:02:34]}  Qh4 {[%clk 0:01:47]} 22. g3 {[%clk 0:02:30]}  Nxe3 {[%clk 0:01:29]} 23. gxh4 {[%clk 0:02:31]}  Nxd1 {[%clk 0:01:29]} 24. Rfxd1 {[%clk 0:02:27]}  Nxd4 {[%clk 0:01:28]} 25. Ra2 {[%clk 0:02:25]}  Rfc8 {[%clk 0:00:59]} 26. Nd6 {[%clk 0:02:07]}  Rxc5 {[%clk 0:00:58]} 27. Nxe4 {[%clk 0:02:08]}  Rd5 {[%clk 0:00:54]} 28. Kf1 {[%clk 0:01:57]}  Nxe2 {[%clk 0:00:46]} 29. Kxe2 {[%clk 0:01:58]}  Re5 {[%clk 0:00:46]} 30. Kf3 {[%clk 0:01:54]}  Ra4 {[%clk 0:00:47]} 31. Rd8+ {[%clk 0:01:50]}  Kh7 {[%clk 0:00:47]} 32. Nd6 {[%clk 0:01:36]}  Rd5 {[%clk 0:00:47]} 33. Nb7 {[%clk 0:01:31]}  Rf5+ {[%clk 0:00:34]} 34. Kg2 {[%clk 0:01:25]}  Ra7 {[%clk 0:00:31]} 35. Nd6 {[%clk 0:01:15]}  Rd5 {[%clk 0:00:31]} 36. a4 {[%clk 0:00:58]}  Bf6 {[%clk 0:00:25]} 37. Nc8 {[%clk 0:00:53]}  Rxa4 {[%clk 0:00:16]} 38. Rxd5 {[%clk 0:00:53]}  Rxa2 {[%clk 0:00:17]} 39. Rd7 {[%clk 0:00:53]}  Kg8 {[%clk 0:00:13]} 40. Nd6 {[%clk 0:00:49]}  Bxh4 {[%clk 0:00:08]} 41. Rxf7 {[%clk 0:00:27]}  Rd2 {[%clk 0:00:09]} 42. Nc4 {[%clk 0:00:25]}  Kxf7 {[%clk 0:00:05]} 43. Nxd2 {[%clk 0:00:25]}  Be7 {[%clk 0:00:05]} 44. Ne4 {[%clk 0:00:25]}  e5 {[%clk 0:00:05]} 45. Kf3 {[%clk 0:00:24]}  Ke6 {[%clk 0:00:06]} 46. Kg4 {[%clk 0:00:25]}  Kd5 {[%clk 0:00:06]} 47. Kf3 {[%clk 0:00:25]}  Kd4 {[%clk 0:00:07]} 48. Ng3 {[%clk 0:00:24]}  Kd3 {[%clk 0:00:06]} 49. Ne4 {[%clk 0:00:25]}  h5 {[%clk 0:00:06]} 50. Ng3 {[%clk 0:00:24]}  Bh4 {[%clk 0:00:05]} 51. Ne4 {[%clk 0:00:24]}  Kd4 {[%clk 0:00:06]} 52. Nd6 {[%clk 0:00:22]}  Be7 {[%clk 0:00:05]} 53. Ne4 {[%clk 0:00:21]}  Kd5 {[%clk 0:00:05]} 54. Nc3+ {[%clk 0:00:21]}  Ke6 {[%clk 0:00:05]} 55. Ne4 {[%clk 0:00:22]}  Kf5 {[%clk 0:00:06]} 56. Ng3+ {[%clk 0:00:22]}  Kg5 {[%clk 0:00:07]} 57. Ne4+ {[%clk 0:00:22]}  Kh4 {[%clk 0:00:07]} 58. Kg2 {[%clk 0:00:23]}  Bd8 {[%clk 0:00:07]} 59. Kh2 {[%clk 0:00:21]}  Bg5 {[%clk 0:00:07]} 60. Kg2 {[%clk 0:00:20]}  Bf4 {[%clk 0:00:08]} 61. f3 {[%clk 0:00:15]}  Be3 {[%clk 0:00:05]} 62. Kh2 {[%clk 0:00:16]}  Bf4+ {[%clk 0:00:05]} 63. Kg2 {[%clk 0:00:16]}  Be3 {[%clk 0:00:06]} 64. Kh2 {[%clk 0:00:16]}  Bd4 {[%clk 0:00:06]} 65. Kg2 {[%clk 0:00:17]}  Bb6 {[%clk 0:00:05]} 66. Kh2 {[%clk 0:00:17]}  Bd8 {[%clk 0:00:06]} 67. Kg2 {[%clk 0:00:17]}  Be7 {[%clk 0:00:06]} 68. Kh2 {[%clk 0:00:17]}  g5 {[%clk 0:00:07]} 69. Ng3 {[%clk 0:00:13]}  g4 {[%clk 0:00:07]} 70. Nf5+ {[%clk 0:00:12]}  Kg5 {[%clk 0:00:05]} 71. Nxe7 {[%clk 0:00:13]}  gxf3 {[%clk 0:00:04]} 72. Kg3 {[%clk 0:00:12]}  e4 {[%clk 0:00:04]} 73. Nd5 {[%clk 0:00:09]}  h4+ {[%clk 0:00:05]} 74. Kf2 {[%clk 0:00:09]}  Kf5 {[%clk 0:00:05]} 75. Ke3 {[%clk 0:00:09]}  f2 {[%clk 0:00:02]} 76. Kxf2 {[%clk 0:00:09]}  Ke5 {[%clk 0:00:03]} 77. Ne3 {[%clk 0:00:10]}  Kf4 {[%clk 0:00:03]} 78. Ng2+ {[%clk 0:00:09]}  Kg5 {[%clk 0:00:03]} 79. Ke3 {[%clk 0:00:10]}  Kh5 {[%clk 0:00:03]} 80. Kxe4 {[%clk 0:00:10]} 1-0


[Site "https://www.chess.com"]

[Event "Titled Tuesday Blitz August 09 Late 2022"]
[White "Hakobyan, Aram"]
[Black "Iliaguev, Nisim"]
[WhiteFideId "13306677"]
[BlackFideId "2817276"]
[WhiteElo "2557"]
[BlackElo "2107"]
[Result "1-0"]
[Round "05"]
[TimeControl "180+1"]
[Date "2022.08.09"]
[WhiteClock "0:00:45"]
[BlackClock "0:00:08"]

1. d4 {[%clk 0:02:57]}  Nf6 {[%clk 0:03:00]} 2. Nf3 {[%clk 0:02:57]}  e6 {[%clk 0:03:00]} 3. c3 {[%clk 0:02:57]}  c5 {[%clk 0:03:00]} 4. Bf4 {[%clk 0:02:58]}  cxd4 {[%clk 0:03:00]} 5. cxd4 {[%clk 0:02:59]}  Nc6 {[%clk 0:03:00]} 6. Nc3 {[%clk 0:02:59]}  Bb4 {[%clk 0:02:59]} 7. Rc1 {[%clk 0:02:57]}  O-O {[%clk 0:02:59]} 8. e3 {[%clk 0:02:56]}  d5 {[%clk 0:02:59]} 9. Bd3 {[%clk 0:02:56]}  Ne4 {[%clk 0:02:55]} 10. O-O {[%clk 0:02:54]}  f5 {[%clk 0:02:55]} 11. Ne5 {[%clk 0:02:50]}  Nxe5 {[%clk 0:02:54]} 12. Bxe5 {[%clk 0:02:50]}  a6 {[%clk 0:02:51]} 13. Nxe4 {[%clk 0:02:43]}  fxe4 {[%clk 0:02:43]} 14. Rc7 {[%clk 0:02:39]}  Rf7 {[%clk 0:02:32]} 15. Rxf7 {[%clk 0:02:29]}  Kxf7 {[%clk 0:02:33]} 16. Qh5+ {[%clk 0:02:03]}  Kg8 {[%clk 0:02:33]} 17. Be2 {[%clk 0:02:01]}  Bd7 {[%clk 0:02:29]} 18. f3 {[%clk 0:01:56]}  exf3 {[%clk 0:01:59]} 19. Bd3 {[%clk 0:01:55]}  h6 {[%clk 0:01:07]} 20. Rxf3 {[%clk 0:01:39]}  Be8 {[%clk 0:00:37]} 21. Qg4 {[%clk 0:01:35]}  Qe7 {[%clk 0:00:30]} 22. Rg3 {[%clk 0:01:24]}  g5 {[%clk 0:00:28]} 23. h4 {[%clk 0:01:22]}  Be1 {[%clk 0:00:26]} 24. hxg5 {[%clk 0:01:22]}  h5 {[%clk 0:00:24]} 25. Qf4 {[%clk 0:01:17]}  Bxg3 {[%clk 0:00:23]} 26. Qxg3 {[%clk 0:01:18]}  Rc8 {[%clk 0:00:18]} 27. g6 {[%clk 0:01:14]}  Rc1+ {[%clk 0:00:18]} 28. Kh2 {[%clk 0:01:15]}  Rd1 {[%clk 0:00:17]} 29. Be2 {[%clk 0:01:03]}  Rd2 {[%clk 0:00:17]} 30. Bxh5 {[%clk 0:01:02]}  Rxb2 {[%clk 0:00:10]} 31. Qh3 {[%clk 0:00:56]}  Rb6 {[%clk 0:00:07]} 32. Bg4 {[%clk 0:00:50]}  Bxg6 {[%clk 0:00:07]} 33. Qh8+ {[%clk 0:00:48]}  Kf7 {[%clk 0:00:07]} 34. Qg7+ {[%clk 0:00:48]}  Ke8 {[%clk 0:00:08]} 35. Qxg6+ {[%clk 0:00:48]}  Qf7 {[%clk 0:00:08]} 36. Qh6 {[%clk 0:00:45]}  Rc6 {[%clk 0:00:08]} 37. Bh5 {[%clk 0:00:45]} 1-0


[Site "https://www.chess.com"]

[Event "Titled Tuesday Blitz August 09 Late 2022"]
[White "Harvey, Marcus R"]
[Black "Rasulov, Vugar"]
[WhiteFideId "400092"]
[BlackFideId "13402390"]
[WhiteElo "2485"]
[BlackElo "2509"]
[Result "1-0"]
[Round "05"]
[TimeControl "180+1"]
[Date "2022.08.09"]
[WhiteClock "0:00:07"]
[BlackClock "0:00:03"]

1. d4 {[%clk 0:03:00]}  Nf6 {[%clk 0:02:59]} 2. Nf3 {[%clk 0:02:58]}  d5 {[%clk 0:02:59]} 3. c4 {[%clk 0:02:58]}  c6 {[%clk 0:02:59]} 4. cxd5 {[%clk 0:02:56]}  cxd5 {[%clk 0:03:00]} 5. Bf4 {[%clk 0:02:56]}  Nc6 {[%clk 0:03:00]} 6. e3 {[%clk 0:02:56]}  a6 {[%clk 0:02:59]} 7. Bd3 {[%clk 0:02:54]}  Bg4 {[%clk 0:02:58]} 8. Nc3 {[%clk 0:02:53]}  e6 {[%clk 0:02:58]} 9. h3 {[%clk 0:02:51]}  Bh5 {[%clk 0:02:57]} 10. Qb3 {[%clk 0:02:42]}  Bxf3 {[%clk 0:02:49]} 11. gxf3 {[%clk 0:02:38]}  Na5 {[%clk 0:02:46]} 12. Qa4+ {[%clk 0:02:33]}  Nc6 {[%clk 0:02:45]} 13. Qb3 {[%clk 0:02:16]}  Na5 {[%clk 0:02:43]} 14. Qa4+ {[%clk 0:02:15]}  Nd7 {[%clk 0:02:44]} 15. Rc1 {[%clk 0:02:05]}  b5 {[%clk 0:02:33]} 16. Nxb5 {[%clk 0:02:05]}  axb5 {[%clk 0:02:34]} 17. Bxb5 {[%clk 0:02:05]}  Nc4 {[%clk 0:01:57]} 18. Bxd7+ {[%clk 0:02:04]}  Ke7 {[%clk 0:01:57]} 19. Qc6 {[%clk 0:01:44]}  Qa5+ {[%clk 0:01:13]} 20. Rc3 {[%clk 0:01:34]}  Ra6 {[%clk 0:00:58]} 21. Qc8 {[%clk 0:01:21]}  Ra8 {[%clk 0:00:56]} 22. Qc6 {[%clk 0:01:01]}  Qa6 {[%clk 0:00:44]} 23. Rxc4 {[%clk 0:00:49]}  dxc4 {[%clk 0:00:36]} 24. Bd6+ {[%clk 0:00:44]}  Kf6 {[%clk 0:00:35]} 25. Be5+ {[%clk 0:00:42]}  Kg6 {[%clk 0:00:27]} 26. Rg1+ {[%clk 0:00:38]}  Kh5 {[%clk 0:00:27]} 27. Qe4 {[%clk 0:00:23]}  f5 {[%clk 0:00:26]} 28. Qf4 {[%clk 0:00:10]}  Be7 {[%clk 0:00:22]} 29. Rxg7 {[%clk 0:00:07]}  Rag8 {[%clk 0:00:10]} 30. Qg3 {[%clk 0:00:04]}  c3 {[%clk 0:00:04]} 31. bxc3 {[%clk 0:00:03]}  Qxa2 {[%clk 0:00:03]} 32. Kf1 {[%clk 0:00:03]}  Qb1+ {[%clk 0:00:02]} 33. Kg2 {[%clk 0:00:03]}  Qb7 {[%clk 0:00:02]} 34. Rxg8 {[%clk 0:00:03]}  Rxg8 {[%clk 0:00:03]} 35. Qxg8 {[%clk 0:00:04]}  Qxd7 {[%clk 0:00:03]} 36. Qf7+ {[%clk 0:00:05]}  Kh6 {[%clk 0:00:03]} 37. Bg7+ {[%clk 0:00:05]}  Kg5 {[%clk 0:00:03]} 38. f4+ {[%clk 0:00:05]}  Kh4 {[%clk 0:00:03]} 39. Bf6+ {[%clk 0:00:06]}  Bxf6 {[%clk 0:00:03]} 40. Qxf6+ {[%clk 0:00:07]}  Kh5 {[%clk 0:00:03]} 41. Qg5# {[%clk 0:00:07]} 1-0


[Site "https://www.chess.com"]

[Event "Titled Tuesday Blitz August 09 Late 2022"]
[White "Holt, Conrad"]
[Black "Hafiz, Arif Abdul"]
[WhiteFideId "2034387"]
[BlackFideId "7104227"]
[WhiteElo "2586"]
[BlackElo "2198"]
[Result "1-0"]
[Round "05"]
[TimeControl "180+1"]
[Date "2022.08.09"]
[WhiteClock "0:00:14"]
[BlackClock "0:00:11"]

1. d4 {[%clk 0:03:00]}  Nf6 {[%clk 0:02:59]} 2. c4 {[%clk 0:03:01]}  c6 {[%clk 0:02:57]} 3. Nc3 {[%clk 0:02:59]}  d5 {[%clk 0:02:58]} 4. e3 {[%clk 0:02:59]}  e6 {[%clk 0:02:57]} 5. Bd3 {[%clk 0:02:59]}  Nbd7 {[%clk 0:02:58]} 6. e4 {[%clk 0:02:59]}  dxe4 {[%clk 0:02:56]} 7. Nxe4 {[%clk 0:02:58]}  c5 {[%clk 0:02:56]} 8. Nf3 {[%clk 0:02:57]}  cxd4 {[%clk 0:02:53]} 9. O-O {[%clk 0:02:54]}  Nc5 {[%clk 0:02:49]} 10. Nxc5 {[%clk 0:02:49]}  Bxc5 {[%clk 0:02:48]} 11. b4 {[%clk 0:02:47]}  Be7 {[%clk 0:02:44]} 12. Bb2 {[%clk 0:02:46]}  O-O {[%clk 0:02:37]} 13. a3 {[%clk 0:02:22]}  a5 {[%clk 0:02:32]} 14. b5 {[%clk 0:02:05]}  b6 {[%clk 0:02:03]} 15. Nxd4 {[%clk 0:01:41]}  Bb7 {[%clk 0:02:03]} 16. Qe2 {[%clk 0:01:30]}  Qc7 {[%clk 0:01:58]} 17. Rfe1 {[%clk 0:01:29]}  Rad8 {[%clk 0:01:55]} 18. Rad1 {[%clk 0:01:27]}  Bd6 {[%clk 0:01:40]} 19. h3 {[%clk 0:01:07]}  Rfe8 {[%clk 0:01:40]} 20. Bb1 {[%clk 0:01:02]}  Bf8 {[%clk 0:01:01]} 21. Nf3 {[%clk 0:00:31]}  Rc8 {[%clk 0:00:44]} 22. Ng5 {[%clk 0:00:16]}  Qxc4 {[%clk 0:00:31]} 23. Bd3 {[%clk 0:00:15]}  Qf4 {[%clk 0:00:21]} 24. Bxf6 {[%clk 0:00:14]}  gxf6 {[%clk 0:00:11]} 25. Qh5 {[%clk 0:00:14]} 1-0


[Site "https://www.chess.com"]

[Event "Titled Tuesday Blitz August 09 Late 2022"]
[White "Livaic, Leon"]
[Black "Andreikin, Dmitry"]
[WhiteFideId "14531534"]
[BlackFideId "4158814"]
[WhiteElo "2540"]
[BlackElo "2736"]
[Result "0-1"]
[Round "05"]
[TimeControl "180+1"]
[Date "2022.08.09"]
[WhiteClock "0:00:04"]
[BlackClock "0:00:39"]

1. d4 {[%clk 0:03:00]}  Nf6 {[%clk 0:02:59]} 2. c4 {[%clk 0:03:01]}  e6 {[%clk 0:02:59]} 3. Nf3 {[%clk 0:03:01]}  a6 {[%clk 0:02:59]} 4. Nc3 {[%clk 0:03:01]}  d5 {[%clk 0:02:59]} 5. cxd5 {[%clk 0:03:02]}  exd5 {[%clk 0:02:59]} 6. Bg5 {[%clk 0:03:02]}  Be6 {[%clk 0:03:00]} 7. Bxf6 {[%clk 0:03:03]}  Qxf6 {[%clk 0:02:59]} 8. Qb3 {[%clk 0:03:04]}  Ra7 {[%clk 0:02:58]} 9. g3 {[%clk 0:03:03]}  Qd8 {[%clk 0:02:55]} 10. h4 {[%clk 0:03:02]}  Be7 {[%clk 0:02:54]} 11. Bh3 {[%clk 0:03:02]}  Bxh3 {[%clk 0:02:51]} 12. Rxh3 {[%clk 0:03:02]}  c6 {[%clk 0:02:51]} 13. O-O-O {[%clk 0:02:56]}  a5 {[%clk 0:02:49]} 14. Qc2 {[%clk 0:02:40]}  a4 {[%clk 0:02:47]} 15. Kb1 {[%clk 0:02:33]}  a3 {[%clk 0:02:45]} 16. b3 {[%clk 0:02:33]}  Na6 {[%clk 0:02:45]} 17. e3 {[%clk 0:02:26]}  Nb4 {[%clk 0:02:39]} 18. Qe2 {[%clk 0:02:25]}  Qd7 {[%clk 0:02:31]} 19. Rhh1 {[%clk 0:02:24]}  O-O {[%clk 0:02:25]} 20. Ne5 {[%clk 0:02:20]}  Qf5+ {[%clk 0:02:23]} 21. Nd3 {[%clk 0:01:50]}  Re8 {[%clk 0:02:23]} 22. g4 {[%clk 0:01:48]}  Qe6 {[%clk 0:02:20]} 23. Nxb4 {[%clk 0:01:22]}  Bxb4 {[%clk 0:02:20]} 24. Na4 {[%clk 0:01:12]}  Qe4+ {[%clk 0:01:59]} 25. Kc1 {[%clk 0:01:08]}  b5 {[%clk 0:01:46]} 26. Nc5 {[%clk 0:01:05]}  Bxc5 {[%clk 0:01:46]} 27. dxc5 {[%clk 0:01:05]}  Qb4 {[%clk 0:01:42]} 28. Qc2 {[%clk 0:01:02]}  Qxg4 {[%clk 0:01:40]} 29. h5 {[%clk 0:01:01]}  h6 {[%clk 0:01:37]} 30. Rdg1 {[%clk 0:00:52]}  Qe4 {[%clk 0:01:37]} 31. Qc3 {[%clk 0:00:44]}  Qe5 {[%clk 0:01:36]} 32. Kc2 {[%clk 0:00:40]}  Qf5+ {[%clk 0:01:26]} 33. Kc1 {[%clk 0:00:37]}  Qe5 {[%clk 0:01:21]} 34. Kc2 {[%clk 0:00:36]}  Qxc3+ {[%clk 0:01:18]} 35. Kxc3 {[%clk 0:00:36]}  Re4 {[%clk 0:01:18]} 36. Rg3 {[%clk 0:00:33]}  Kf8 {[%clk 0:01:03]} 37. Rhg1 {[%clk 0:00:33]}  f6 {[%clk 0:01:03]} 38. Rg4 {[%clk 0:00:32]}  b4+ {[%clk 0:01:01]} 39. Kd3 {[%clk 0:00:32]}  Rae7 {[%clk 0:01:02]} 40. Rxe4 {[%clk 0:00:19]}  Rxe4 {[%clk 0:01:01]} 41. f4 {[%clk 0:00:19]}  Kf7 {[%clk 0:00:58]} 42. Rg4 {[%clk 0:00:18]}  f5 {[%clk 0:00:53]} 43. Rg6 {[%clk 0:00:16]}  Re6 {[%clk 0:00:53]} 44. Rg1 {[%clk 0:00:16]}  g6 {[%clk 0:00:50]} 45. Ke2 {[%clk 0:00:08]}  d4 {[%clk 0:00:40]} 46. hxg6+ {[%clk 0:00:03]}  Rxg6 {[%clk 0:00:38]} 47. Rxg6 {[%clk 0:00:03]}  Kxg6 {[%clk 0:00:39]} 48. exd4 {[%clk 0:00:02]}  Kf6 {[%clk 0:00:40]} 49. d5 {[%clk 0:00:01]}  cxd5 {[%clk 0:00:40]} 50. Kd3 {[%clk 0:00:02]}  Ke6 {[%clk 0:00:39]} 51. Kd4 {[%clk 0:00:02]}  h5 {[%clk 0:00:39]} 52. c6 {[%clk 0:00:02]}  Kd6 {[%clk 0:00:38]} 53. c7 {[%clk 0:00:03]}  Kxc7 {[%clk 0:00:39]} 54. Kxd5 {[%clk 0:00:04]}  h4 {[%clk 0:00:39]} 0-1


[Site "https://www.chess.com"]